[Event "Lueneburg Open-A 2019"]
[Site "Lueneburg"]
[Date "2019.08.06"]
[Round "4.10"]
[White "Weishaeutel, Moritz"]
[Black "Wronn, Bernd"]
[Result "1-0"]
[ECO "B13"]
[WhiteElo "2276"]
[BlackElo "2128"]
[Annotator "NA"]
[PlyCount "65"]
[EventDate "2019.08.03"]
[EventType "swiss"]
[EventCountry "GER"]
[SourceTitle "playchess.com"]
[Source "ChessBase"]
[SourceQuality "1"]
[TimeControl "40/5400+30:1800+30"]

1. e4 {[%emt 0:00:00]} c6 {[%emt 0:00:00]} 2. d4 {[%emt 0:00:00]} d5 {[%emt 0:00:00]} 3. exd5 {[%emt 0:00:00]} cxd5 {[%emt 0:00:00]} 4. Bd3 {[%emt 0:00:00]} Nc6 {[%emt 0:00:04]} 5. c3 {[%emt 0:00:00]} Nf6 {[%emt 0:00:13]} 6. Bf4 {[%emt 0:00:00]} Bg4 {[%emt 0:00:21]} 7. Qb3 {[%emt 0:00:00]} Qd7 {[%emt 0:00:07]} 8. Nd2 {[%emt 0:00:01]} e6 {[%emt 0:00:07]} 9. Ngf3 {[%emt 0:00:04]} Bxf3 {[%emt 0:00:09]} 10. Nxf3 {[%emt 0:00:03]} Bd6 {[%emt 0:00:14]} 11. Bxd6 {[%emt 0:00:04]} Qxd6 {[%emt 0:00:14]} 12. O-O {[%emt 0:00:04]} O-O {[%emt 0:00:41]} 13. Rfe1 {[%emt 0:00:03]} Rab8 {[%emt 0:00:23]} 14. a4 {[%emt 0:00:05]} a6 {[%emt 0:01:16]} 15. Qd1 {[%emt 0:00:04]} b5 {[%emt 0:00:44]} 16. axb5 {[%emt 0:00:04]} axb5 {[%emt 0:00:09]} 17. b4 {[%emt 0:00:05]} Rfc8 {[%emt 0:02:11]} 18. Qe2 {[%emt 0:00:13]} Ne7 {[%emt 0:01:24]} 19. Ra3 {[%emt 0:00:13]} Rc7 {[%emt 0:15:49]} 20. Bxb5 {[%emt 0:31:52]} Ne4 {[%emt 0:00:09]} 21. Rc1 {[%emt 0:01:08]} Rbc8 {[%emt 0:05:27]} 22. Qb2 {[%emt 0:02:39]} Ng6 {[%emt 0:07:02]} 23. Nd2 {[%emt 0:04:55]} e5 {[%emt 0:04:59]} 24. Nxe4 {[%emt 0:04:47]} dxe4 {[%emt 0:00:03]} 25. Rd1 {[%emt 0:00:16]} Nh4 {[%emt 0:07:42]} 26. Bf1 {[%emt 0:03:12]} Qg6 {[%emt 0:03:42]} 27. Kh1 {[%emt 0:00:18]} exd4 {[%emt 0:03:14]} 28. Rxd4 {[%emt 0:01:20]} Nf5 {[%emt 0:02:49]} 29. Rd5 {[%emt 0:03:41]} Qf6 {[%emt 0:04:21]} 30. Ra6 {[%emt 0:06:49]} Qg5 {[%emt 0:01:45]} 31. c4 {[%emt 0:01:49]} Qf4 {[%emt 0:00:32]} 32. Qe5 {[%emt 0:02:44]} Qc1 {[%emt 0:03:16]} 33. Ra1 {[%emt 0:00:15]} 1-0

[Event "Lueneburg Open-A 2019"]
[Site "Lueneburg"]
[Date "2019.08.06"]
[Round "4.14"]
[White "Ramme, Christoph"]
[Black "Probst, Alexander"]
[Result "1/2-1/2"]
[ECO "D20"]
[WhiteElo "2154"]
[BlackElo "1969"]
[Annotator "NA"]
[PlyCount "44"]
[EventDate "2019.08.03"]
[EventType "swiss"]
[EventCountry "GER"]
[SourceTitle "playchess.com"]
[Source "ChessBase"]
[SourceQuality "1"]
[TimeControl "40/5400+30:1800+30"]

1. d4 {[%emt 0:00:00]} d5 {[%emt 0:00:00]} 2. c4 {[%emt 0:00:00]} dxc4 {[%emt 0:00:00]} 3. e4 {[%emt 0:00:54]} e5 {[%emt 0:00:24]} 4. Nf3 {[%emt 0:00:36]} Bb4+ {[%emt 0:01:13]} 5. Nc3 {[%emt 0:03:51]} exd4 {[%emt 0:01:47]} 6. Qxd4 {[%emt 0:04:00]} Qxd4 {[%emt 0:01:12]} 7. Nxd4 {[%emt 0:00:05]} Bd7 {[%emt 0:05:49]} 8. Bxc4 {[%emt 0:02:02]} Nf6 {[%emt 0:01:57]} 9. O-O {[%emt 0:03:32]} Nc6 {[%emt 0:01:56]} 10. Nf3 {[%emt 0:10:25]} O-O {[%emt 0:01:07]} 11. e5 {[%emt 0:05:27]} Bxc3 {[%emt 0:06:35]} 12. bxc3 {[%emt 0:01:09]} Ne4 {[%emt 0:01:22]} 13. Re1 {[%emt 0:06:16]} Nxc3 {[%emt 0:02:14]} 14. Ng5 {[%emt 0:03:46]} Nd8 {[%emt 0:06:03]} 15. Ba3 {[%emt 0:14:39]} Re8 {[%emt 0:02:58]} 16. Bb4 {[%emt 0:09:25]} Na4 {[%emt 0:01:14]} 17. Bb3 {[%emt 0:06:40]} Ne6 {[%emt 0:02:14]} 18. Nxe6 {[%emt 0:02:31]} fxe6 {[%emt 0:00:15]} 19. Rac1 {[%emt 0:00:59]} Rac8 {[%emt 0:02:32]} 20. f4 {[%emt 0:03:56]} g6 {[%emt 0:02:54]} 21. Kf2 {[%emt 0:01:35]} Nb6 {[%emt 0:00:32]} 22. Ba5 {[%emt 0:03:15]} Bc6 {[%emt 0:03:53]} 1/2-1/2

[Event "Lueneburg Open-A 2019"]
[Site "Lueneburg"]
[Date "2019.08.06"]
[Round "4.15"]
[White "Bosselmann, Tom Linus"]
[Black "Ishak, Rashid"]
[Result "0-1"]
[ECO "C36"]
[WhiteElo "2000"]
[BlackElo "2141"]
[Annotator "NA"]
[PlyCount "88"]
[EventDate "2019.08.03"]
[EventType "swiss"]
[EventCountry "GER"]
[SourceTitle "playchess.com"]
[Source "ChessBase"]
[SourceQuality "1"]
[TimeControl "40/5400+30:1800+30"]

1. e4 {[%emt 0:00:15]} e5 {[%emt 0:03:02]} 2. f4 {[%emt 0:00:15]} exf4 {[%emt 0:00:10]} 3. Nf3 {[%emt 0:00:07]} d5 {[%emt 0:01:15]} 4. exd5 {[%emt 0:00:21]} Nf6 {[%emt 0:05:58]} 5. Bb5+ {[%emt 0:00:41]} c6 {[%emt 0:00:13]} 6. dxc6 {[%emt 0:00:33]} bxc6 {[%emt 0:00:07]} 7. Bc4 {[%emt 0:00:22]} Bd6 {[%emt 0:00:35]} 8. O-O {[%emt 0:01:12]} O-O {[%emt 0:00:29]} 9. d4 {[%emt 0:00:57]} Nd5 {[%emt 0:00:36]} 10. Nc3 {[%emt 0:06:04]} Be6 {[%emt 0:00:37]} 11. Nxd5 {[%emt 0:00:54]} Bxd5 {[%emt 0:00:23]} 12. Bxd5 {[%emt 0:15:48]} cxd5 {[%emt 0:00:18]} 13. Ne5 {[%emt 0:00:28]} Qb6 {[%emt 0:03:23]} 14. Kh1 {[%emt 0:13:29]} f6 {[%emt 0:02:09]} 15. Nd3 {[%emt 0:17:39]} Nc6 {[%emt 0:06:47]} 16. Bxf4 {[%emt 0:16:36]} Bxf4 {[%emt 0:08:49]} 17. Nxf4 {[%emt 0:00:28]} Qxb2 {[%emt 0:00:30]} 18. Nxd5 {[%emt 0:01:27]} Rad8 {[%emt 0:00:34]} 19. c4 {[%emt 0:04:04]} Qxd4 {[%emt 0:01:38]} 20. Qxd4 {[%emt 0:02:57]} Nxd4 {[%emt 0:00:09]} 21. Rab1 {[%emt 0:02:27]} Rf7 {[%emt 0:00:43]} 22. Rfe1 {[%emt 0:00:59]} Nc6 {[%emt 0:04:15]} 23. Rbd1 {[%emt 0:05:28]} Kf8 {[%emt 0:00:39]} 24. h3 {[%emt 0:00:39]} Rfd7 {[%emt 0:01:05]} 25. Rc1 {[%emt 0:04:03]} Ne5 {[%emt 0:04:50]} 26. Re2 {[%emt 0:00:19]} Nxc4 {[%emt 0:02:30]} 27. Rxc4 {[%emt 0:01:10]} Rxd5 {[%emt 0:00:07]} 28. Rc7 {[%emt 0:00:09]} R8d7 {[%emt 0:00:15]} 29. Rxd7 {[%emt 0:02:03]} Rxd7 {[%emt 0:00:08]} 30. Re4 {[%emt 0:00:40]} Kf7 {[%emt 0:00:46]} 31. Ra4 {[%emt 0:00:27]} Ke6 {[%emt 0:00:37]} 32. Ra6+ {[%emt 0:01:17]} Ke5 {[%emt 0:02:04]} 33. Kh2 {[%emt 0:00:16]} Kf4 {[%emt 0:00:19]} 34. Ra4+ {[%emt 0:00:13]} Ke3 {[%emt 0:00:35]} 35. h4 {[%emt 0:00:35]} g6 {[%emt 0:01:34]} 36. Ra3+ {[%emt 0:01:13]} Ke4 {[%emt 0:03:28]} 37. Ra4+ {[%emt 0:00:17]} Kd3 {[%emt 0:03:15]} 38. Kh3 {[%emt 0:00:48]} Re7 {[%emt 0:00:47]} 39. g3 {[%emt 0:00:45]} Ke3 {[%emt 0:02:38]} 40. Ra6 {[%emt 0:00:47]} f5 {[%emt 0:00:27]} 41. Ra4 {[%emt 0:30:29]} Kf2 {[%emt 0:31:13]} 42. Rf4+ {[%emt 0:00:05]} Kg1 {[%emt 0:00:24]} 43. Ra4 {[%emt 0:00:00]} Re2 {[%emt 0:00:00]} 44. g4 {[%emt 0:00:00]} Re3# {[%emt 0:00:00]} 0-1

[Event "Lueneburg Open-A 2019"]
[Site "Lueneburg"]
[Date "2019.08.06"]
[Round "4.16"]
[White "Garner, Isaac"]
[Black "Rick, Uwe"]
[Result "1-0"]
[ECO "B80"]
[WhiteElo "1974"]
[BlackElo "2113"]
[Annotator "NA"]
[PlyCount "81"]
[EventDate "2019.08.03"]
[EventType "swiss"]
[EventCountry "GER"]
[SourceTitle "playchess.com"]
[Source "ChessBase"]
[SourceQuality "1"]
[TimeControl "40/5400+30:1800+30"]

1. e4 {[%emt 0:00:00]} c5 {[%emt 0:00:01]} 2. Nf3 {[%emt 0:00:00]} d6 {[%emt 0:00:09]} 3. d4 {[%emt 0:00:00]} cxd4 {[%emt 0:00:07]} 4. Nxd4 {[%emt 0:00:00]} Nf6 {[%emt 0:00:06]} 5. Nc3 {[%emt 0:00:02]} a6 {[%emt 0:00:05]} 6. g3 {[%emt 0:00:05]} e6 {[%emt 0:00:27]} 7. Bg2 {[%emt 0:00:05]} Be7 {[%emt 0:00:09]} 8. O-O {[%emt 0:00:06]} Qc7 {[%emt 0:00:14]} 9. f4 {[%emt 0:00:05]} O-O {[%emt 0:05:11]} 10. g4 {[%emt 0:01:10]} Nc6 {[%emt 0:13:01]} 11. Nxc6 {[%emt 0:00:35]} bxc6 {[%emt 0:00:12]} 12. g5 {[%emt 0:00:16]} Nd7 {[%emt 0:00:48]} 13. f5 {[%emt 0:00:23]} d5 {[%emt 0:03:37]} 14. fxe6 {[%emt 0:13:15]} fxe6 {[%emt 0:02:41]} 15. Rxf8+ {[%emt 0:01:43]} Nxf8 {[%emt 0:15:04]} 16. exd5 {[%emt 0:03:24]} Qe5 {[%emt 0:05:54]} 17. Qe2 {[%emt 0:24:03]} Qxe2 {[%emt 0:02:37]} 18. Nxe2 {[%emt 0:00:11]} exd5 {[%emt 0:00:59]} 19. Nd4 {[%emt 0:10:25]} Bd7 {[%emt 0:01:13]} 20. Be3 {[%emt 0:02:37]} Re8 {[%emt 0:02:53]} 21. c4 {[%emt 0:07:08]} Bc5 {[%emt 0:11:24]} 22. Bf2 {[%emt 0:01:58]} dxc4 {[%emt 0:19:18]} 23. Nxc6 {[%emt 0:01:52]} Bxf2+ {[%emt 0:05:08]} 24. Kxf2 {[%emt 0:01:58]} Bxc6 {[%emt 0:02:45]} 25. Bxc6 {[%emt 0:00:09]} Re5 {[%emt 0:00:07]} 26. Rd1 {[%emt 0:03:24]} Kf7 {[%emt 0:03:12]} 27. Bd5+ {[%emt 0:02:03]} Kg6 {[%emt 0:00:24]} 28. h4 {[%emt 0:03:11]} Kf5 {[%emt 0:02:00]} 29. Bxc4 {[%emt 0:01:44]} Ng6 {[%emt 0:00:02]} 30. Bd3+ {[%emt 0:01:31]} Kg4 {[%emt 0:00:33]} 31. Bxa6 {[%emt 0:08:27]} Nxh4 {[%emt 0:00:31]} 32. Rg1+ {[%emt 0:01:51]} Kf4 {[%emt 0:00:24]} 33. Be2 {[%emt 0:01:49]} Rxg5 {[%emt 0:02:30]} 34. Rxg5 {[%emt 0:06:38]} Kxg5 {[%emt 0:00:03]} 35. a4 {[%emt 0:00:07]} Nf5 {[%emt 0:01:54]} 36. a5 {[%emt 0:03:03]} Nd6 {[%emt 0:00:18]} 37. b4 {[%emt 0:00:14]} Kf5 {[%emt 0:01:33]} 38. b5 {[%emt 0:01:37]} Ke5 {[%emt 0:00:53]} 39. b6 {[%emt 0:00:45]} Ne4+ {[%emt 0:00:17]} 40. Ke3 {[%emt 0:00:32]} Nc5 {[%emt 0:00:02]} 41. b7 {[%emt 0:02:46]} 1-0

[Event "Lueneburg Open-A 2019"]
[Site "Lueneburg"]
[Date "2019.08.06"]
[Round "4.17"]
[White "Hommer, Jeremy"]
[Black "Ploder, Udo"]
[Result "1-0"]
[ECO "A45"]
[WhiteElo "2083"]
[BlackElo "1942"]
[Annotator "NA"]
[PlyCount "69"]
[EventDate "2019.08.03"]
[EventType "swiss"]
[EventCountry "GER"]
[SourceTitle "playchess.com"]
[Source "ChessBase"]
[SourceQuality "1"]
[TimeControl "40/5400+30:1800+30"]

1. d4 {[%emt 0:00:00]} Nf6 {[%emt 0:00:00]} 2. Bf4 {[%emt 0:00:00]} c5 {[%emt 0:00:08]} 3. e3 {[%emt 0:00:00]} Qb6 {[%emt 0:00:30]} 4. Nc3 {[%emt 0:01:57]} d6 {[%emt 0:03:32]} 5. Rb1 {[%emt 0:12:52]} g6 {[%emt 0:03:26]} 6. Nf3 {[%emt 0:02:37]} Bg7 {[%emt 0:02:20]} 7. Be2 {[%emt 0:05:11]} O-O {[%emt 0:01:23]} 8. O-O {[%emt 0:01:06]} Bf5 {[%emt 0:07:00]} 9. h3 {[%emt 0:04:09]} Na6 {[%emt 0:05:25]} 10. g4 {[%emt 0:07:08]} Be6 {[%emt 0:07:54]} 11. d5 {[%emt 0:02:06]} Bd7 {[%emt 0:04:24]} 12. e4 {[%emt 0:01:02]} Rad8 {[%emt 0:09:12]} 13. Nd2 {[%emt 0:02:57]} e5 {[%emt 0:05:22]} 14. Bg5 {[%emt 0:08:11]} h6 {[%emt 0:00:45]} 15. Bxf6 {[%emt 0:02:45]} Bxf6 {[%emt 0:00:08]} 16. Nc4 {[%emt 0:01:56]} Qc7 {[%emt 0:00:37]} 17. a4 {[%emt 0:00:54]} Nb8 {[%emt 0:04:27]} 18. b3 {[%emt 0:05:51]} a6 {[%emt 0:02:51]} 19. Bd3 {[%emt 0:03:18]} Bg5 {[%emt 0:02:19]} 20. Ne2 {[%emt 0:07:30]} h5 {[%emt 0:01:58]} 21. f4 {[%emt 0:01:34]} exf4 {[%emt 0:00:51]} 22. Nxf4 {[%emt 0:00:14]} b5 {[%emt 0:01:56]} 23. axb5 {[%emt 0:02:21]} axb5 {[%emt 0:00:07]} 24. Ne3 {[%emt 0:00:36]} Kg7 {[%emt 0:02:34]} 25. gxh5 {[%emt 0:03:23]} Rh8 {[%emt 0:01:29]} 26. hxg6 {[%emt 0:00:18]} fxg6 {[%emt 0:00:39]} 27. Neg2 {[%emt 0:09:03]} Qc8 {[%emt 0:03:47]} 28. Qf3 {[%emt 0:01:54]} Rdf8 {[%emt 0:03:26]} 29. Qg3 {[%emt 0:00:40]} Qd8 {[%emt 0:02:58]} 30. Ra1 {[%emt 0:02:17]} Rh6 {[%emt 0:02:06]} 31. Bxb5 {[%emt 0:04:53]} Bxf4 {[%emt 0:08:02]} 32. Nxf4 {[%emt 0:00:02]} Rxf4 {[%emt 0:01:36]} 33. Qxf4 {[%emt 0:00:13]} Bxb5 {[%emt 0:01:31]} 34. Qf7+ {[%emt 0:00:10]} Kh8 {[%emt 0:00:15]} 35. Qf8+ {[%emt 0:00:12]} 1-0

[Event "Lueneburg Open-A 2019"]
[Site "Lueneburg"]
[Date "2019.08.06"]
[Round "4.18"]
[White "Fabregas, Oliver"]
[Black "Klages, Hans Juergen"]
[Result "0-1"]
[ECO "A06"]
[WhiteElo "1956"]
[BlackElo "2095"]
[Annotator "NA"]
[PlyCount "54"]
[EventDate "2019.08.03"]
[EventType "swiss"]
[EventCountry "GER"]
[SourceTitle "playchess.com"]
[Source "ChessBase"]
[SourceQuality "1"]
[TimeControl "40/5400+30:1800+30"]

1. Nf3 {[%emt 0:00:00]} d5 {[%emt 0:00:00]} 2. e3 {[%emt 1:31:00]} Nf6 {[%emt 0:00:24]} 3. c4 {[%emt 0:00:00]} g6 {[%emt 0:00:37]} 4. b3 {[%emt 0:00:00]} Bg7 {[%emt 0:00:11]} 5. Bb2 {[%emt 0:00:00]} e6 {[%emt 0:04:24]} 6. d4 {[%emt 0:00:00]} O-O {[%emt 0:00:54]} 7. Nbd2 {[%emt 0:00:00]} c5 {[%emt 0:01:02]} 8. cxd5 {[%emt 0:00:00]} Nxd5 {[%emt 0:08:54]} 9. Rc1 {[%emt 0:00:00]} cxd4 {[%emt 0:04:38]} 10. Nxd4 {[%emt 0:00:00]} e5 {[%emt 0:02:03]} 11. N4f3 {[%emt 0:00:00]} Nc6 {[%emt 0:00:09]} 12. Bc4 {[%emt 0:00:00]} Ndb4 {[%emt 0:01:05]} 13. a3 {[%emt 0:00:00]} Nd3+ {[%emt 0:00:06]} 14. Bxd3 {[%emt 0:00:00]} Qxd3 {[%emt 0:00:03]} 15. Qc2 {[%emt 0:00:00]} Bf5 {[%emt 0:02:30]} 16. e4 {[%emt 0:00:00]} Qxc2 {[%emt 0:02:44]} 17. Rxc2 {[%emt 0:00:00]} Be6 {[%emt 0:06:43]} 18. Ke2 {[%emt 0:00:00]} h6 {[%emt 0:06:56]} 19. h3 {[%emt 0:00:00]} f5 {[%emt 0:01:16]} 20. b4 {[%emt 0:00:00]} fxe4 {[%emt 0:08:22]} 21. Nxe4 {[%emt 0:00:00]} Bf5 {[%emt 0:00:32]} 22. Nfd2 {[%emt 0:00:00]} Rad8 {[%emt 0:03:41]} 23. Rc4 {[%emt 0:00:00]} Nd4+ {[%emt 0:11:43]} 24. Bxd4 {[%emt 0:00:00]} exd4 {[%emt 0:33:03]} 25. Kd3 {[%emt 0:11:30]} Bd7 {[%emt 0:00:00]} 26. Rc5 {[%emt 0:00:00]} a6 {[%emt 0:01:00]} 27. Rhc1 {[%emt 0:01:00]} Bc6 {[%emt 0:00:30]} 0-1

[Event "Lueneburg Open-A 2019"]
[Site "Lueneburg"]
[Date "2019.08.06"]
[Round "4.19"]
[White "Chennaoui, Yasin"]
[Black "Joppien, Arne"]
[Result "1-0"]
[ECO "A25"]
[WhiteElo "2092"]
[BlackElo "1940"]
[Annotator "NA"]
[PlyCount "105"]
[EventDate "2019.08.03"]
[EventType "swiss"]
[EventCountry "GER"]
[SourceTitle "playchess.com"]
[Source "ChessBase"]
[SourceQuality "1"]
[TimeControl "40/5400+30:1800+30"]

1. c4 {[%emt 0:00:00]} e5 {[%emt 0:00:00]} 2. g3 {[%emt 0:00:00]} Nf6 {[%emt 0:00:00]} 3. Bg2 {[%emt 0:00:00]} Bc5 {[%emt 0:00:37]} 4. a3 {[%emt 0:00:01]} a5 {[%emt 0:00:18]} 5. Nc3 {[%emt 0:00:06]} O-O {[%emt 0:00:28]} 6. e3 {[%emt 0:00:32]} Nc6 {[%emt 0:00:58]} 7. Nge2 {[%emt 0:00:09]} d6 {[%emt 0:00:19]} 8. O-O {[%emt 0:01:35]} Bg4 {[%emt 0:03:36]} 9. h3 {[%emt 0:00:08]} Bxe2 {[%emt 0:00:20]} 10. Nxe2 {[%emt 0:01:49]} h6 {[%emt 0:02:25]} 11. Rb1 {[%emt 0:09:09]} Re8 {[%emt 0:01:58]} 12. b4 {[%emt 0:01:57]} axb4 {[%emt 0:09:56]} 13. axb4 {[%emt 0:00:02]} Bb6 {[%emt 0:00:46]} 14. d4 {[%emt 0:00:54]} exd4 {[%emt 0:00:33]} 15. exd4 {[%emt 1:21:08]} Qe7 {[%emt 0:06:51]} 16. Be3 {[%emt 0:00:00]} Ra3 {[%emt 0:02:41]} 17. Qc1 {[%emt 0:00:00]} Rxe3 {[%emt 0:04:37]} 18. Qxe3 {[%emt 0:00:00]} Qxe3 {[%emt 0:00:33]} 19. fxe3 {[%emt 0:00:00]} Rxe3 {[%emt 0:00:23]} 20. Kf2 {[%emt 0:00:00]} Re8 {[%emt 0:03:47]} 21. Bxc6 {[%emt 0:00:00]} bxc6 {[%emt 0:00:18]} 22. c5 {[%emt 0:00:00]} Ne4+ {[%emt 0:03:28]} 23. Ke1 {[%emt 0:00:00]} Nxg3 {[%emt 0:04:33]} 24. Rf2 {[%emt 0:00:00]} Ba7 {[%emt 0:12:36]} 25. Ra1 {[%emt 0:00:00]} Bb8 {[%emt 0:00:14]} 26. Ra3 {[%emt 0:00:00]} Ne4 {[%emt 0:02:33]} 27. Re3 {[%emt 0:00:00]} Kf8 {[%emt 0:05:04]} 28. Rf4 {[%emt 0:00:00]} Nf6 {[%emt 0:06:52]} 29. Rxe8+ {[%emt 0:00:00]} Kxe8 {[%emt 0:00:02]} 30. Nc3 {[%emt 0:00:00]} Ke7 {[%emt 0:00:29]} 31. Kd2 {[%emt 0:00:00]} Ke6 {[%emt 0:05:49]} 32. Rf1 {[%emt 0:00:00]} g5 {[%emt 0:11:55]} 33. Ra1 {[%emt 0:00:00]} Kd7 {[%emt 0:00:26]} 34. Ra6 {[%emt 0:00:00]} Ng8 {[%emt 0:02:26]} 35. b5 {[%emt 0:00:00]} cxb5 {[%emt 0:02:18]} 36. c6+ {[%emt 0:00:00]} Kc8 {[%emt 0:01:27]} 37. Nd5 {[%emt 0:00:00]} f5 {[%emt 0:02:13]} 38. Ra8 {[%emt 0:00:00]} h5 {[%emt 0:01:48]} 39. Ke3 {[%emt 0:00:00]} h4 {[%emt 0:00:52]} 40. Kf3 {[%emt 0:00:00]} Nh6 {[%emt 0:01:26]} 41. Ne7+ {[%emt 0:00:00]} Kd8 {[%emt 0:30:10]} 42. Ng8 {[%emt 0:00:00]} g4+ {[%emt 0:00:44]} 43. Kg2 {[%emt 0:00:00]} Nxg8 {[%emt 0:00:00]} 44. Rxb8+ {[%emt 0:00:00]} Ke7 {[%emt 0:00:00]} 45. Rxg8 {[%emt 0:00:00]} d5 {[%emt 0:00:00]} 46. hxg4 {[%emt 0:00:00]} fxg4 {[%emt 0:00:00]} 47. Rxg4 {[%emt 0:00:00]} b4 {[%emt 0:00:00]} 48. Rxh4 {[%emt 0:00:00]} b3 {[%emt 0:00:00]} 49. Rh7+ {[%emt 0:00:00]} Kd6 {[%emt 0:00:00]} 50. Rh6+ {[%emt 0:00:00]} Ke7 {[%emt 0:00:00]} 51. Rh3 {[%emt 0:00:00]} Kd6 {[%emt 0:00:00]} 52. Rxb3 {[%emt 0:00:00]} Kxc6 {[%emt 0:00:00]} 53. Kf3 {[%emt 0:49:00]} 1-0

[Event "Lueneburg Open-A 2019"]
[Site "Lueneburg"]
[Date "2019.08.06"]
[Round "4.20"]
[White "Bargsten, Justus"]
[Black "Schulz, Daniel"]
[Result "0-1"]
[ECO "C11"]
[WhiteElo "1946"]
[BlackElo "2071"]
[Annotator "NA"]
[PlyCount "48"]
[EventDate "2019.08.03"]
[EventType "swiss"]
[EventCountry "GER"]
[SourceTitle "playchess.com"]
[Source "ChessBase"]
[SourceQuality "1"]
[TimeControl "40/5400+30:1800+30"]

1. e4 {[%emt 0:00:00]} e6 {[%emt 0:01:17]} 2. d4 {[%emt 0:00:00]} d5 {[%emt 0:00:04]} 3. Nc3 {[%emt 0:00:00]} Nf6 {[%emt 0:00:05]} 4. e5 {[%emt 0:00:00]} Nfd7 {[%emt 0:00:04]} 5. f4 {[%emt 0:00:00]} c5 {[%emt 0:00:11]} 6. Nf3 {[%emt 0:00:00]} Nc6 {[%emt 0:00:08]} 7. Be3 {[%emt 0:00:05]} Be7 {[%emt 0:00:32]} 8. Qd2 {[%emt 0:00:05]} b6 {[%emt 0:01:47]} 9. O-O-O {[%emt 0:02:17]} c4 {[%emt 0:08:48]} 10. f5 {[%emt 0:04:47]} b5 {[%emt 0:08:23]} 11. fxe6 {[%emt 0:10:53]} fxe6 {[%emt 0:00:25]} 12. Bg5 {[%emt 0:18:47]} b4 {[%emt 0:20:30]} 13. Nb5 {[%emt 0:04:32]} O-O {[%emt 0:01:05]} 14. Bxe7 {[%emt 0:00:44]} Nxe7 {[%emt 0:00:18]} 15. Nd6 {[%emt 0:04:42]} Qa5 {[%emt 0:12:08]} 16. Kb1 {[%emt 0:02:36]} Rb8 {[%emt 0:00:31]} 17. Ng5 {[%emt 0:05:57]} Nb6 {[%emt 0:29:20]} 18. Nxc8 {[%emt 0:14:53]} Rfxc8 {[%emt 0:00:13]} 19. Nxe6 {[%emt 0:00:24]} Na4 {[%emt 0:02:11]} 20. Qg5 {[%emt 0:00:42]} Ng6 {[%emt 0:03:02]} 21. Kc1 {[%emt 0:05:26]} b3 {[%emt 0:04:47]} 22. axb3 {[%emt 0:02:24]} cxb3 {[%emt 0:00:31]} 23. c4 {[%emt 0:00:29]} Nxb2 {[%emt 0:00:53]} 24. Bd3 {[%emt 0:00:18]} Nxd3+ {[%emt 0:01:44]} 0-1

[Event "Lueneburg Open-A 2019"]
[Site "Lueneburg"]
[Date "2019.08.06"]
[Round "4.21"]
[White "Koellner, Christof"]
[Black "Beuter, Christof"]
[Result "1-0"]
[ECO "A46"]
[WhiteElo "2091"]
[BlackElo "1930"]
[Annotator "NA"]
[PlyCount "63"]
[EventDate "2019.08.03"]
[EventType "swiss"]
[EventCountry "GER"]
[SourceTitle "playchess.com"]
[Source "ChessBase"]
[SourceQuality "1"]
[TimeControl "40/5400+30:1800+30"]

1. d4 {[%emt 0:00:00]} Nf6 {[%emt 0:00:00]} 2. Nf3 {[%emt 0:00:00]} d6 {[%emt 0:00:00]} 3. Nbd2 {[%emt 0:00:37]} Nbd7 {[%emt 0:02:33]} 4. e4 {[%emt 0:00:35]} e5 {[%emt 0:00:09]} 5. c3 {[%emt 0:00:39]} Be7 {[%emt 0:00:26]} 6. Bd3 {[%emt 0:02:00]} c6 {[%emt 0:00:25]} 7. a4 {[%emt 0:00:41]} a5 {[%emt 0:00:49]} 8. O-O {[%emt 0:00:56]} h6 {[%emt 0:00:58]} 9. Re1 {[%emt 0:00:31]} Qc7 {[%emt 0:00:49]} 10. Nc4 {[%emt 0:04:10]} Ng4 {[%emt 0:13:59]} 11. h3 {[%emt 0:02:03]} Ngf6 {[%emt 0:03:43]} 12. Bc2 {[%emt 0:09:06]} g5 {[%emt 0:10:28]} 13. dxe5 {[%emt 0:01:26]} dxe5 {[%emt 0:00:10]} 14. Nh2 {[%emt 0:06:04]} Nf8 {[%emt 0:01:22]} 15. Be3 {[%emt 0:01:41]} c5 {[%emt 0:06:27]} 16. Ng4 {[%emt 0:10:15]} Nxg4 {[%emt 0:03:54]} 17. hxg4 {[%emt 0:00:14]} Ng6 {[%emt 0:01:00]} 18. g3 {[%emt 0:04:06]} Ra6 {[%emt 0:09:13]} 19. Qe2 {[%emt 0:06:31]} Rf6 {[%emt 0:05:30]} 20. Rad1 {[%emt 0:02:31]} Nf4 {[%emt 0:07:11]} 21. gxf4 {[%emt 0:06:47]} gxf4 {[%emt 0:00:57]} 22. f3 {[%emt 0:00:35]} h5 {[%emt 0:07:42]} 23. g5 {[%emt 0:01:59]} Rg6 {[%emt 0:00:43]} 24. Bf2 {[%emt 0:01:11]} Bxg5 {[%emt 0:08:57]} 25. Kh1 {[%emt 0:01:04]} h4 {[%emt 0:01:52]} 26. Rd5 {[%emt 0:05:15]} Bf6 {[%emt 0:02:29]} 27. Rxc5 {[%emt 0:10:57]} Qd7 {[%emt 0:02:25]} 28. Rxc8+ {[%emt 0:00:21]} Bd8 {[%emt 0:00:34]} 29. Rxd8+ {[%emt 0:01:05]} Qxd8 {[%emt 0:00:06]} 30. Nxe5 {[%emt 0:01:11]} Rg3 {[%emt 0:01:48]} 31. Qb5+ {[%emt 0:06:05]} Kf8 {[%emt 0:00:23]} 32. Qd7 {[%emt 0:01:42]} 1-0

[Event "Lueneburg Open-A 2019"]
[Site "Lueneburg"]
[Date "2019.08.06"]
[Round "4.22"]
[White "Schwarz, Jochen"]
[Black "Jurkic, Bosiljko"]
[Result "1/2-1/2"]
[ECO "A18"]
[WhiteElo "1909"]
[BlackElo "2046"]
[Annotator "NA"]
[PlyCount "27"]
[EventDate "2019.08.03"]
[EventType "swiss"]
[EventCountry "GER"]
[SourceTitle "playchess.com"]
[Source "ChessBase"]
[SourceQuality "1"]
[TimeControl "40/5400+30:1800+30"]

1. c4 {[%emt 0:00:00]} Nf6 {[%emt 0:00:00]} 2. Nc3 {[%emt 0:00:00]} e6 {[%emt 0:00:00]} 3. e4 {[%emt 0:00:04]} d5 {[%emt 0:00:39]} 4. e5 {[%emt 0:00:37]} Ne4 {[%emt 0:00:22]} 5. Nf3 {[%emt 0:01:13]} c5 {[%emt 0:02:01]} 6. cxd5 {[%emt 0:06:52]} Nxc3 {[%emt 0:09:45]} 7. dxc3 {[%emt 0:03:10]} Qxd5 {[%emt 0:01:30]} 8. Bg5 {[%emt 0:08:01]} Qe4+ {[%emt 0:06:48]} 9. Be3 {[%emt 0:04:46]} Bd7 {[%emt 0:09:55]} 10. Bd3 {[%emt 0:02:10]} Qc6 {[%emt 0:05:03]} 11. Qc2 {[%emt 0:05:03]} h6 {[%emt 0:03:36]} 12. O-O {[%emt 0:03:12]} Qc7 {[%emt 0:03:27]} 13. Rfe1 {[%emt 0:04:36]} Bc6 {[%emt 0:02:39]} 14. Be4 {[%emt 0:02:21]} 1/2-1/2